fUSD/lending_fUSD_20250514
["ID","MTS","AMOUNT","RATE_DAILY","PERIOD"]
[361013033,1747204250133,-150.0,0.00010959,2]
[361013035,1747204250142,-500.0,0.00010959,2]
[361013037,1747204250151,-500.0,0.00010959,2]
[361013039,1747204250161,-500.0,0.00010959,2]
[361013041,1747204250170,-500.0,0.00010959,2]
[361013043,1747204250181,-500.0,0.00010959,2]
[361013046,1747204250190,-500.0,0.00010959,2]
[361013047,1747204250199,-500.0,0.00010959,2]
[361013050,1747204250209,-500.0,0.00010959,2]
[361013052,1747204250218,-500.0,0.00010959,2]
[361013054,1747204250227,-388.62335232,0.00010959,2]
[361013055,1747204250236,-500.0,0.00010959,2]
[361013058,1747204250246,-500.0,0.00010973,2]
[361013060,1747204250256,-340.16328176,0.00010973,2]
[361013062,1747204250265,-500.0,0.00010973,2]
[361013064,1747204250275,-500.0,0.00010973,2]
[361013066,1747204250284,-500.0,0.00010973,2]
[361013068,1747204250294,-500.0,0.00010973,2]
[361013070,1747204250306,-500.0,0.00010973,2]
[361013072,1747204250315,-173.677,0.00010973,2]
[361013073,1747204250324,-1980.292,0.00010973,2]
[361013075,1747204250334,-931.0,0.00010993,2]
[361013078,1747204250345,-151.0,0.00010993,2]
[361013080,1747204250355,-668.65185757,0.00010993,2]
[361013081,1747204250365,-287.61899177,0.00010993,2]
[361013083,1747204250375,-400.0,0.00010997,2]
[361013086,1747204250384,-400.0,0.00010997,2]
[361013088,1747204250394,-401.67705257,0.00010997,2]
[361013089,1747204250403,-400.0,0.00010997,2]
[361013092,1747204250413,-401.23252577,0.00010997,2]
[361013094,1747204250422,-400.0,0.00010997,2]
[361013096,1747204250431,-241.6818407,0.00010997,2]
[361013098,1747204250444,-500.0,0.00010997,2]
[361013100,1747204250454,-8582.2162844,0.00010998,2]
[361013102,1747204250464,-187.18637144,0.00010999,2]
[361013104,1747204250474,-300.0,0.00010999,2]
[361013106,1747204250483,-408.57229255,0.00010999,2]
[361013108,1747204250492,-649.0,0.00011,2]
[361013110,1747204250501,-1221640.64476677,0.00011,2]
[361013112,1747204250511,-828573.04037882,0.00011,2]
[361013114,1747204250522,-151.0,0.00011,2]
[361013116,1747204250532,-151.0,0.00011,2]
[361013118,1747204250542,-151.0,0.00011,2]
[361013120,1747204250551,-151.0,0.00011,2]
[361013122,1747204250561,-151.0,0.00011,2]
[361013124,1747204250570,-151.0,0.00011,2]
[361013126,1747204250580,-151.0,0.00011,2]
[361013128,1747204250589,-151.0,0.00011,2]
[361013130,1747204250598,-151.0,0.00011,2]
[361013132,1747204250609,-151.0,0.00011,2]
[361013134,1747204250618,-20367.49018494,0.00011,2]
[361013136,1747204250629,-936.14765891,0.00011,2]
[361013137,1747204250639,-151.0,0.00011,2]
[361013139,1747204250649,-151.0,0.00011,2]
[361013141,1747204250659,-151.0,0.00011,2]
[361013143,1747204250668,-151.0,0.00011,2]
[361013146,1747204250689,-151.0,0.00011,2]
[361013149,1747204250706,-151.0,0.00011,2]
[361013152,1747204250725,-151.0,0.00011,2]
[361013156,1747204250747,-215.437132,0.00011,2]
[361013158,1747204250762,-7500.0,0.00011,2]
[361013161,1747204250781,-199.370519,0.00011,2]
[361013164,1747204250802,-199.370519,0.00011,2]
[361013168,1747204250822,-151.0,0.00011,2]
[361013171,1747204250840,-264.792246,0.00011,2]
[361013172,1747204250859,-151.0,0.00011,2]
[361013173,1747204250876,-151.0,0.00011,2]
[361013174,1747204250890,-264.792246,0.00011,2]
[361013175,1747204250910,-151.0,0.00011,2]
[361013176,1747204250924,-151.0,0.00011,2]
[361013177,1747204250942,-151.0,0.00011,2]
[361013178,1747204250956,-151.0,0.00011,2]
[361013179,1747204250971,-175.302114,0.00011,2]
[361013180,1747204250986,-151.0,0.00011,2]
[361013181,1747204251000,-151.0,0.00011,2]
[361013182,1747204251015,-151.0,0.00011,2]
[361013183,1747204251031,-151.0,0.00011,2]
[361013184,1747204251046,-151.0,0.00011,2]
[361013185,1747204251062,-151.0,0.00011,2]
[361013186,1747204251077,-151.0,0.00011,2]
[361013187,1747204251092,-151.0,0.00011,2]
[361013188,1747204251107,-151.0,0.00011,2]
[361013189,1747204251126,-151.0,0.00011,2]
[361013190,1747204251141,-261.446253,0.00011,2]
[361013191,1747204251156,-155.355866,0.00011,2]
[361013192,1747204251170,-151.0,0.00011,2]
[361013193,1747204251186,-151.0,0.00011,2]
[361013194,1747204251201,-242.405424,0.00011,2]
[361013195,1747204251217,-151.0,0.00011,2]
[361013196,1747204251233,-151.0,0.00011,2]
[361013197,1747204251250,-151.0,0.00011,2]
[361013198,1747204251265,-151.0,0.00011,2]
[361013199,1747204251281,-159.653133,0.00011,2]
[361013200,1747204251296,-348.260208,0.00011,2]
[361013201,1747204251311,-159.653133,0.00011,2]
[361013202,1747204251326,-348.260208,0.00011,2]
[361013203,1747204251341,-213.805051,0.00011,2]
[361013204,1747204251357,-213.805051,0.00011,2]
[361013205,1747204251372,-200.0,0.00011,2]
[361013206,1747204251388,-262.551324,0.00011,2]
[361013207,1747204251404,-262.551324,0.00011,2]
[361013208,1747204251420,-200.0,0.00011,2]
[361013209,1747204251436,-299.840888,0.00011,2]
[361013210,1747204251454,-299.840888,0.00011,2]
[361013211,1747204251470,-606792.00023622,0.00011,2]
[361013212,1747204251486,-200.0,0.00011,2]
[361013213,1747204251502,-5303.65284892,0.00011,2]
[361013214,1747204251519,-150.0,0.00011,2]
[361013215,1747204251535,-569.94228127,0.00011,2]
[361013216,1747204251551,-672553.86792601,0.00011,2]
[361013217,1747204252524,150.0,0.00013,5]
[361013218,1747204253334,-400.0,0.00010958,2]
[361013219,1747204253344,-400.0,0.00010958,2]
[361013220,1747204253353,-10532.08383009,0.00011,2]
[361013221,1747204253402,-719288.18950825,0.00011,2]
[361013222,1747204253414,-66121.62554843,0.00011,2]
[361013223,1747204350062,2289.23272416,0.0002,30]
[361013224,1747204449522,156.0,0.00025,60]
[361013225,1747204657372,-300.0,0.00010039,2]
[361013226,1747204657409,-500.0,0.0001004,2]
[361013227,1747204657446,-500.0,0.0001004,2]
[361013228,1747204657483,-500.0,0.0001004,2]
[361013229,1747204657521,-500.0,0.0001004,2]
[361013230,1747204657557,-500.0,0.0001004,2]
[361013231,1747204657598,-500.0,0.0001004,2]
[361013232,1747204657636,-500.0,0.0001004,2]
[361013233,1747204657672,-500.0,0.0001004,2]
[361013234,1747204657707,-500.0,0.0001004,2]
[361013235,1747204657741,-500.0,0.0001004,2]
[361013236,1747204657775,-500.0,0.0001004,2]
[361013237,1747204657808,-500.0,0.0001004,2]
[361013238,1747204657963,-500.0,0.0001004,2]
[361013239,1747204658031,-500.0,0.0001004,2]
[361013240,1747204658064,-500.0,0.0001004,2]
[361013241,1747204658096,-500.0,0.0001004,2]
[361013242,1747204658129,-500.0,0.0001004,2]
[361013243,1747204658162,-500.0,0.0001004,2]
[361013244,1747204658194,-622.86819835,0.0001004,2]
[361013245,1747204658226,-622.86819835,0.0001004,2]
[361013246,1747204658262,-622.86819835,0.0001004,2]
[361013247,1747204658295,-622.86819835,0.0001004,2]
[361013248,1747204658330,-622.86819835,0.0001004,2]
[361013249,1747204658368,-622.86819835,0.0001004,2]
[361013250,1747204658405,-622.86819835,0.0001004,2]
[361013251,1747204658442,-622.86819835,0.0001004,2]
[361013252,1747204658476,-622.86819835,0.0001004,2]
[361013253,1747204658513,-622.86819835,0.0001004,2]
[361013254,1747204658549,-622.86819835,0.0001004,2]
[361013255,1747204658586,-622.86819835,0.0001004,2]
[361013256,1747204658619,-622.86819835,0.0001004,2]
[361013257,1747204658652,-622.86819835,0.0001004,2]
[361013258,1747204658686,-622.86819835,0.0001004,2]
[361013259,1747204658719,-622.86819835,0.0001004,2]
[361013260,1747204658752,-622.86819835,0.0001004,2]
[361013261,1747204658785,-622.86819835,0.0001004,2]
[361013262,1747204658819,-622.86819835,0.0001004,2]
[361013263,1747204658851,-622.86819835,0.0001004,2]
[361013264,1747204658885,-622.86819835,0.0001004,2]
[361013265,1747204658919,-622.86819835,0.0001004,2]
[361013266,1747204658951,-622.86819835,0.0001004,2]
[361013267,1747204658990,-622.86819835,0.0001004,2]
[361013268,1747204659027,-622.86819835,0.0001004,2]
[361013269,1747204659062,-622.86819835,0.0001004,2]
[361013270,1747204659095,-622.86819835,0.0001004,2]
[361013271,1747204659130,-622.86819835,0.0001004,2]
[361013272,1747204659163,-622.86819835,0.0001004,2]
[361013273,1747204659197,-622.86819835,0.0001004,2]
[361013274,1747204659230,-622.86819835,0.0001004,2]
[361013275,1747204659264,-622.86819835,0.0001004,2]
[361013276,1747204659296,-622.86819835,0.0001004,2]
[361013277,1747204659330,-622.86819835,0.0001004,2]
[361013278,1747204659363,-622.86819835,0.0001004,2]
[361013279,1747204659398,-622.86819835,0.0001004,2]
[361013280,1747204659433,-622.86819835,0.0001004,2]
[361013281,1747204659471,-622.86819835,0.0001004,2]
[361013282,1747204659508,-622.86819835,0.0001004,2]
[361013283,1747204659542,-622.86819835,0.0001004,2]
[361013284,1747204659576,-622.86819835,0.0001004,2]
[361013285,1747204659609,-622.86819835,0.0001004,2]
[361013286,1747204659652,-622.86819835,0.0001004,2]
[361013287,1747204659687,-620.64366906,0.0001004,2]
[361013288,1747204659721,-620.64366906,0.0001004,2]
[361013289,1747204659753,-620.64366906,0.0001004,2]
[361013290,1747204659789,-620.64366906,0.0001004,2]
[361013291,1747204659825,-620.64366906,0.0001004,2]
[361013292,1747204659858,-620.64366906,0.0001004,2]
[361013293,1747204659896,-620.64366906,0.0001004,2]
[361013294,1747204659929,-620.64366906,0.0001004,2]
[361013295,1747204659961,-620.64366906,0.0001004,2]
[361013296,1747204659993,-620.64366906,0.0001004,2]
[361013297,1747204660025,-620.64366906,0.0001004,2]
[361013298,1747204660057,-620.64366906,0.0001004,2]
[361013299,1747204660089,-620.64366906,0.0001004,2]
[361013300,1747204660120,-620.64366906,0.0001004,2]
[361013301,1747204660156,-620.64366906,0.0001004,2]
[361013302,1747204660187,-620.64366906,0.0001004,2]
[361013303,1747204660221,-620.64366906,0.0001004,2]
[361013304,1747204660254,-620.64366906,0.0001004,2]
[361013305,1747204660286,-620.64366906,0.0001004,2]
[361013306,1747204660318,-620.64366906,0.0001004,2]
[361013307,1747204660349,-620.64366906,0.0001004,2]
[361013308,1747204660373,-226.0,0.0001004,2]
[361013309,1747204660398,-57.15042069,0.0001004,2]
[361013310,1747204678196,190.29,9.991e-05,2]
[361013311,1747204736924,381.470324,9.988e-05,2]
[361013312,1747204752333,150.0,0.0001001,7]
[361013313,1747204838568,747.5121,9.94e-05,2]
[361013314,1747204848656,510.44,8.219e-05,2]
[361013316,1747205025844,3031.5,9.978e-05,2]
[361013317,1747205082701,450.0,0.0001,2]
[361013319,1747205173451,200.59,9.987e-05,2]
[361013323,1747205314389,-500.0,0.00010034,2]
[361013324,1747205314425,-500.0,0.00010034,2]
[361013325,1747205314463,-500.0,0.00010034,2]
[361013326,1747205314499,-500.0,0.00010034,2]
[361013327,1747205314537,-500.0,0.00010034,2]
[361013328,1747205314573,-500.0,0.00010034,2]
[361013329,1747205314608,-500.0,0.00010034,2]
[361013330,1747205314645,-500.0,0.00010034,2]
[361013331,1747205314682,-500.0,0.00010034,2]
[361013332,1747205314717,-500.0,0.00010034,2]
[361013333,1747205314753,-500.0,0.00010034,2]
[361013334,1747205314789,-411.34565964,0.00010034,2]
[361013335,1747205314826,-500.0,0.00010034,2]
[361013336,1747205314863,-500.0,0.00010034,2]
[361013337,1747205314904,-500.0,0.00010034,2]
[361013338,1747205314942,-500.0,0.00010034,2]
[361013339,1747205314981,-500.0,0.00010034,2]
[361013340,1747205315018,-500.0,0.00010034,2]
[361013341,1747205315057,-500.0,0.00010034,2]
[361013342,1747205315094,-500.0,0.00010034,2]
[361013343,1747205315120,-150.0,0.00010034,2]
[361013344,1747205315146,-238.65434036,0.0001004,2]
[361013358,1747205392281,9138.83010988,0.0001,2]
[361013359,1747205393800,6446.1,9.978e-05,2]
[361013366,1747205431765,-514.41803189,0.0001004,2]
[361013367,1747205431776,-241.44873919,0.00010041,2]
[361013368,1747205431787,-8.55126081,0.00010041,2]
[361013369,1747205431797,-510.44,0.00010476,2]
[361013370,1747205431807,-128.20484245,0.00010712,2]
[361013371,1747205431852,-374.79515755,0.00010712,2]
[361013372,1747205431862,-1027.04594045,0.00010848,2]
[361013385,1747205432023,-350.0,0.00010848,2]
[361013387,1747205432042,-335.8159988,0.00010848,2]
[361013390,1747205432053,-1484.34056075,0.00010848,2]
[361013392,1747205432063,-207.4,0.00010852,2]
[361013394,1747205432073,-300.0,0.00010857,2]
[361013396,1747205432083,-768.8397087,0.00010858,2]
[361013398,1747205432094,-538.79213965,0.00010858,2]
[361013399,1747205432103,-1000.0,0.00010858,2]
[361013401,1747205432112,-382.5172,0.00010858,2]
[361013403,1747205432122,-12439.3524,0.00010858,2]
[361013405,1747205432131,-524.4646,0.00010858,2]
[361013407,1747205432140,-34001.9400869,0.00010858,2]
[361013409,1747205432151,-545.44642781,0.00010858,2]
[361013508,1747205438033,-500.0,0.00010475,2]
[361013509,1747205438043,-601.26062885,0.00010475,2]
[361013510,1747205438053,-2337.73937115,0.00010858,2]
[361013511,1747205438064,-3229.23732841,0.00010858,2]
[361013512,1747205438112,-1240.07,0.00010858,2]
[361013514,1747205439749,-25587.56668573,0.00010858,2]
[361013515,1747205439759,-7536.6682,0.00010858,2]
[361013516,1747205439770,-2500.0,0.00010858,2]
[361013517,1747205439781,-48415.3035,0.000109,2]
[361013518,1747205439791,-500.0,0.000109,2]
[361013519,1747205439804,-426.42,0.000109,2]
[361013520,1747205439814,-181.44713771,0.000109,2]
[361013521,1747205439823,-172.85706746,0.000109,2]
[361013522,1747205439833,-1850.19070057,0.000109,2]
[361013523,1747205439844,-1382.0,0.000109,2]
[361013524,1747205439853,-663.41202908,0.000109,2]
[361013525,1747205439863,-186.15707958,0.00010906,2]
[361013526,1747205439872,-224.89641231,0.00010906,2]
[361013527,1747205439882,-248.02792338,0.00010921,2]
[361013528,1747205439891,-2459.4068535,0.00010944,2]
[361013529,1747205439901,-1124.43622448,0.00010948,2]
[361013530,1747205439914,-232.3,0.00010948,2]
[361013531,1747205439923,-232.3,0.00010948,2]
[361013532,1747205439934,-232.3,0.00010948,2]
[361013533,1747205439943,-232.3,0.00010948,2]
[361013534,1747205439953,-232.3,0.00010948,2]
[361013535,1747205439963,-232.3,0.00010948,2]
[361013536,1747205439973,-232.3,0.00010948,2]
[361013537,1747205439982,-232.3,0.00010948,2]
[361013538,1747205439992,-232.3,0.00010948,2]
[361013539,1747205440002,-296.77024812,0.00010951,2]
[361013544,1747205440183,-287.61899177,0.00010951,2]
[361013545,1747205440201,-668.65185757,0.00010951,2]
[361013546,1747205440210,-151.0,0.00010951,2]
[361013547,1747205440219,-331.65608304,0.00010958,2]
[361013548,1747205440229,-400.0,0.00010958,2]
[361013549,1747205440239,-400.0,0.00010958,2]
[361013550,1747205440248,-400.0,0.00010958,2]
[361013551,1747205440257,-400.0,0.00010958,2]
[361013552,1747205440266,-403.11483092,0.00010958,2]
[361013553,1747205440275,-400.0,0.00010958,2]
[361013554,1747205440284,-400.0,0.00010958,2]
[361013555,1747205440294,-506.47920963,0.00010958,2]
[361013556,1747205440303,-400.0,0.00010958,2]
[361013557,1747205440312,-400.0,0.00010958,2]
[361013558,1747205440322,-784.24,0.00010958,2]
[361013559,1747205440331,-316.28214517,0.00010958,2]
[361013560,1747205440341,-400.0,0.00010958,2]
[361013561,1747205440350,-400.0,0.00010958,2]
[361013562,1747205440359,-400.0,0.00010958,2]
[361013563,1747205440369,-400.0,0.00010958,2]
[361013564,1747205440378,-400.0,0.00010958,2]
[361013565,1747205440387,-193.81252248,0.00010958,2]
[361013566,1747205440396,-400.0,0.00010958,2]
[361013567,1747205440406,-400.0,0.00010958,2]
[361013568,1747205440415,-400.0,0.00010958,2]
[361013569,1747205440425,-400.0,0.00010958,2]
[361013570,1747205440434,-400.0,0.00010958,2]
[361013571,1747205440443,-400.0,0.00010958,2]
[361013572,1747205440453,-400.0,0.00010958,2]
[361013573,1747205440462,-400.0,0.00010958,2]
[361013574,1747205440471,-402.92027474,0.00010958,2]
[361013575,1747205440480,-400.0,0.00010958,2]
[361013576,1747205440490,-400.0,0.00010958,2]
[361013577,1747205440499,-400.0,0.00010958,2]
[361013578,1747205440508,-400.0,0.00010958,2]
[361013579,1747205440517,-400.0,0.00010958,2]
[361013580,1747205440527,-400.0,0.00010958,2]
[361013581,1747205440536,-402.94204606,0.00010958,2]
[361013582,1747205440545,-400.0,0.00010958,2]
[361013583,1747205440555,-400.0,0.00010958,2]
[361013584,1747205440564,-400.0,0.00010958,2]
[361013585,1747205440574,-401.86336123,0.00010958,2]
[361013586,1747205440584,-400.0,0.00010958,2]
[361013587,1747205440595,-400.0,0.00010958,2]
[361013588,1747205440605,-400.0,0.00010958,2]
[361013589,1747205440615,-400.0,0.00010958,2]
[361013590,1747205440628,-400.0,0.00010958,2]
[361013591,1747205440637,-400.0,0.00010958,2]
[361013592,1747205440646,-936.13,0.00010958,2]
[361013593,1747205440655,-246.09529818,0.00010958,2]
[361013594,1747205440665,-400.0,0.00010958,2]
[361013595,1747205440674,-502.17,0.00010958,2]
[361013596,1747205440684,-400.0,0.00010958,2]
[361013597,1747205440693,-400.0,0.00010958,2]
[361013598,1747205440703,-400.0,0.00010958,2]
[361013599,1747205440713,-400.0,0.00010958,2]
[361013600,1747205440722,-400.0,0.00010958,2]
[361013601,1747205440732,-400.0,0.00010958,2]
[361013602,1747205440741,-400.0,0.00010958,2]
[361013603,1747205440751,-400.0,0.00010958,2]
[361013604,1747205440761,-400.0,0.00010958,2]
[361013605,1747205440769,-601.79,0.00010958,2]
[361013606,1747205440778,-407.58,0.00010958,2]
[361013607,1747205440787,-400.0,0.00010958,2]
[361013608,1747205440795,-400.0,0.00010958,2]
[361013609,1747205440805,-400.0,0.00010958,2]
[361013610,1747205440814,-400.0,0.00010958,2]
[361013611,1747205440823,-400.0,0.00010958,2]
[361013612,1747205440832,-400.0,0.00010958,2]
[361013613,1747205440843,-400.0,0.00010958,2]
[361013614,1747205440853,-450.62,0.00010958,2]
[361013615,1747205440862,-1229.31,0.00010958,2]
[361013616,1747205440871,-400.0,0.00010958,2]
[361013617,1747205440881,-406.57608926,0.00010958,2]
[361013618,1747205440890,-400.0,0.00010958,2]
[361013619,1747205440901,-1459.81,0.00010958,2]
[361013620,1747205440913,-400.0,0.00010958,2]
[361013621,1747205440923,-400.0,0.00010958,2]
[361013622,1747205440932,-459.08,0.00010958,2]
[361013623,1747205440942,-400.0,0.00010958,2]
[361013624,1747205440952,-400.0,0.00010958,2]
[361013625,1747205440961,-400.0,0.00010958,2]
[361013626,1747205440971,-451.67516497,0.00010958,2]
[361013627,1747205440981,-400.0,0.00010958,2]
[361013628,1747205440991,-404.30381318,0.00010958,2]
[361013629,1747205441000,-400.0,0.00010958,2]
[361013630,1747205441009,-400.0,0.00010958,2]
[361013631,1747205441018,-400.0,0.00010958,2]
[361013632,1747205441027,-1024.96,0.00010958,2]
[361013633,1747205441036,-407.26,0.00010958,2]
[361013634,1747205441045,-400.0,0.00010958,2]
[361013635,1747205441055,-400.0,0.00010958,2]
[361013636,1747205441064,-400.0,0.00010958,2]
[361013637,1747205441073,-400.0,0.00010958,2]
[361013638,1747205441083,-403.16314854,0.00010958,2]
[361013639,1747205441095,-219.7435134,0.00010958,2]
[361013640,1747205441104,-400.0,0.00010958,2]
[361013641,1747205441113,-400.0,0.00010958,2]
[361013642,1747205441123,-400.0,0.00010958,2]
[361013643,1747205441132,-402.17534372,0.00010958,2]
[361013644,1747205441141,-400.0,0.00010958,2]
[361013645,1747205441150,-400.0,0.00010958,2]
[361013646,1747205441159,-461.7,0.00010958,2]
[361013647,1747205441168,-400.0,0.00010958,2]
[361013648,1747205441178,-482.95,0.00010958,2]
[361013649,1747205441187,-760.04,0.00010958,2]
[361013650,1747205441197,-545.15,0.00010958,2]
[361013651,1747205441206,-3476.230224,0.00010958,2]
[361013652,1747205441215,-371.70073108,0.00010958,2]
[361013653,1747205441224,-400.0,0.00010958,2]
[361013654,1747205441234,-400.0,0.00010958,2]
[361013655,1747205441243,-457.44316421,0.00010958,2]
[361013656,1747205441252,-400.0,0.00010958,2]
[361013657,1747205441262,-400.7158519,0.00010958,2]
[361013658,1747205441272,-400.0,0.00010958,2]
[361013659,1747205441281,-400.0,0.00010958,2]
[361013660,1747205441290,-400.0,0.00010958,2]
[361013661,1747205441299,-400.0,0.00010958,2]
[361013662,1747205441309,-189.41987229,0.00010958,2]
[361013663,1747205441319,-411.86831803,0.00010958,2]
[361013664,1747205441328,-400.0,0.00010958,2]
[361013665,1747205441338,-592.56,0.00010958,2]
[361013666,1747205441354,-400.0,0.00010958,2]
[361013667,1747205441363,-400.0,0.00010958,2]
[361013668,1747205441374,-400.0,0.00010958,2]
[361013669,1747205441384,-405.14545977,0.00010958,2]
[361013670,1747205441393,-1808.756094,0.00010958,2]
[361013671,1747205441404,-174.547771,0.00010958,2]
[361013672,1747205441413,-400.0,0.00010958,2]
[361013673,1747205441422,-400.0,0.00010958,2]
[361013674,1747205441432,-901.81,0.00010958,2]
[361013675,1747205441441,-400.0,0.00010958,2]
[361013676,1747205441451,-400.0,0.00010958,2]
[361013677,1747205441461,-436.84,0.00010958,2]
[361013678,1747205441470,-400.78321181,0.00010958,2]
[361013679,1747205441479,-471.1,0.00010958,2]
[361013680,1747205441488,-400.0,0.00010958,2]
[361013681,1747205441498,-400.0,0.00010958,2]
[361013682,1747205441507,-400.0,0.00010958,2]
[361013683,1747205441516,-400.0,0.00010958,2]
[361013684,1747205441526,-410.87342227,0.00010958,2]
[361013685,1747205441535,-400.0,0.00010958,2]
[361013686,1747205441545,-400.0,0.00010958,2]
[361013687,1747205441555,-400.0,0.00010958,2]
[361013688,1747205441565,-400.0,0.00010958,2]
[361013689,1747205441575,-400.0,0.00010958,2]
[361013690,1747205441584,-430.14300578,0.00010958,2]
[361013691,1747205441597,-400.0,0.00010958,2]
[361013692,1747205441607,-230.81201506,0.00010958,2]
[361013693,1747205441617,-400.0,0.00010958,2]
[361013694,1747205441626,-400.0,0.00010958,2]
[361013695,1747205441636,-400.0,0.00010958,2]
[361013696,1747205441646,-400.0,0.00010958,2]
[361013697,1747205441656,-404.81962454,0.00010958,2]
[361013698,1747205441665,-400.0,0.00010958,2]
[361013699,1747205441675,-500.0,0.00010958,2]
[361013700,1747205441684,-400.0,0.00010958,2]
[361013701,1747205441694,-400.0,0.00010958,2]
[361013702,1747205441703,-400.0,0.00010958,2]
[361013703,1747205441712,-400.0,0.00010958,2]
[361013704,1747205441722,-425.19892459,0.00010958,2]
[361013705,1747205441731,-400.0,0.00010958,2]
[361013706,1747205441741,-400.0,0.00010958,2]
[361013707,1747205441751,-400.0,0.00010958,2]
[361013708,1747205441761,-400.0,0.00010958,2]
[361013709,1747205441770,-400.0,0.00010958,2]
[361013710,1747205441781,-400.0,0.00010958,2]
[361013711,1747205441790,-400.0,0.00010958,2]
[361013712,1747205441800,-400.0,0.00010958,2]
[361013713,1747205441810,-566.44,0.00010958,2]
[361013714,1747205441820,-400.0,0.00010958,2]
[361013715,1747205441829,-571.46,0.00010958,2]
[361013716,1747205441839,-848.7,0.00010958,2]
[361013717,1747205441849,-400.0,0.00010958,2]
[361013718,1747205441859,-400.0,0.00010958,2]
[361013719,1747205441868,-400.0,0.00010958,2]
[361013720,1747205441878,-400.0,0.00010958,2]
[361013721,1747205441887,-400.0,0.00010958,2]
[361013722,1747205441896,-400.0,0.00010958,2]
[361013723,1747205441909,-400.0,0.00010958,2]
[361013724,1747205441918,-400.0,0.00010958,2]
[361013725,1747205441928,-595.75,0.00010958,2]
[361013726,1747205441937,-479.68,0.00010958,2]
[361013727,1747205441947,-417.31,0.00010958,2]
[361013728,1747205441959,-400.0,0.00010958,2]
[361013729,1747205441968,-396.87185499,0.00010958,2]
[361013730,1747205441978,-400.39573274,0.00010958,2]
[361013731,1747205441987,-400.0,0.00010958,2]
[361013732,1747205441997,-543.52706252,0.00010958,2]
[361013733,1747205442007,-313.38565912,0.00010958,2]
[361013734,1747205442016,-400.0,0.00010958,2]
[361013735,1747205442026,-400.0,0.00010958,2]
[361013736,1747205442035,-400.0,0.00010958,2]
[361013737,1747205442044,-634.89,0.00010958,2]
[361013738,1747205442180,-400.0,0.00010958,2]
[361013739,1747205442190,-400.0,0.00010958,2]
[361013740,1747205442200,-500.0,0.00010958,2]
[361013741,1747205442211,-452.39400567,0.00010958,2]
[361013742,1747205442220,-448.03,0.00010958,2]
[361013743,1747205442230,-400.0,0.00010958,2]
[361013744,1747205442240,-400.0,0.00010958,2]
[361013745,1747205442250,-400.0,0.00010958,2]
[361013746,1747205442259,-400.0,0.00010958,2]
[361013748,1747205442269,-400.0,0.00010958,2]
[361013749,1747205442279,-400.0,0.00010958,2]
[361013750,1747205442288,-400.0,0.00010958,2]
[361013751,1747205442298,-406.65971303,0.00010958,2]
[361013752,1747205442307,-400.0,0.00010958,2]
[361013753,1747205442316,-402.15828058,0.00010958,2]
[361013754,1747205442326,-409.91185768,0.00010958,2]
[361013755,1747205442335,-400.0,0.00010958,2]
[361013756,1747205442346,-400.0,0.00010958,2]
[361013757,1747205442356,-400.0,0.00010958,2]
[361013758,1747205442366,-400.0,0.00010958,2]